bitfinex/quotes_ETHUSD_20220310
["timestamp","ask_amount","ask_price","bid_price","bid_amount"]
[1646895859200,0.00331205,2599.4,2599.2,0.07237099]
[1646895860191,0.96303,2599.7,2599.2,0.07237099]
[1646895860392,0.96303,2599.7,2599.5,0.98680651]
[1646895861497,0.96303,2599.7,2599.5,0.98583045]
[1646895861696,0.966342,2599.7,2599.5,0.98583045]
[1646895861898,0.003312,2599.7,2599.5,0.98583045]
[1646895862500,1.55334851,2599.9,2599.5,0.98583045]
[1646895862949,0.003312,2599.7,2599.5,0.98583045]
[1646895863753,1.55334851,2599.9,2599.5,0.98583045]
[1646895863954,0.003312,2599.7,2599.5,0.98583045]
[1646895864156,0.003312,2599.7,2599.6,3.5]
[1646895864355,0.01324601,2600.1,2599.8,0.08131194]
[1646895864554,0.01324601,2600.1,2599.7,102.0]
[1646895864555,0.01324601,2600.1,2599.9,0.07494306]
[1646895864959,1.2048,2600.4,2600.1,51.0]
[1646895865155,9.6629256,2600.9,2600.5,0.90123969]
[1646895865357,2.67109854,2600.9,2600.5,0.90123969]
[1646895865756,0.0421788,2601.0,2600.6,0.08270142]
[1646895866457,0.0421788,2601.0,2600.5,0.90123969]
[1646895866896,0.0421788,2601.0,2600.6,0.08960068]
[1646895867697,0.00245956,2600.9,2600.6,0.08960068]
[1646895868300,0.00245956,2600.9,2600.5,0.90123969]
[1646895868601,0.0421788,2601.0,2600.3,0.0696667]
[1646895868799,0.00245956,2600.9,2600.3,0.0696667]
[1646895869001,0.96263,2600.8,2600.2,1.24617692]
[1646895869201,0.00245956,2600.9,2600.3,0.07400959]
[1646895869701,1.16170058,2600.8,2600.3,1.18485153]
[1646895869904,2.12438058,2600.8,2600.4,0.08225]
[1646895870103,2.12438058,2600.8,2600.3,1.11084194]
[1646895870104,0.00350624,2600.7,2600.3,1.11084194]
[1646895870303,0.00350624,2600.7,2600.2,1.1573]
[1646895870547,0.00350624,2600.7,2600.3,0.08217862]
[1646895870948,2.12438058,2600.8,2600.3,0.08217862]
[1646895871349,0.00350628,2600.6,2600.4,0.8979751]
[1646895871957,0.00350628,2600.6,2600.5,0.06976344]
[1646895872351,0.00246043,2600.6,2600.5,0.06976344]
[1646895872950,0.00246043,2600.6,2600.4,0.8979751]
[1646895873250,0.00246043,2600.6,2600.4,0.98691106]
[1646895873450,0.96265,2600.8,2600.4,0.98691106]
[1646895873752,0.00246043,2600.6,2600.4,0.98691106]
[1646895873949,0.00246043,2600.6,2600.4,0.8979751]
[1646895874212,0.00246043,2600.6,2600.5,0.08364478]
[1646895874596,0.0421788,2601.0,2600.5,0.08364478]
[1646895874796,0.00350991,2600.7,2600.5,0.08364478]
[1646895875896,0.96266,2600.8,2600.3,0.0784992]
[1646895876096,0.00350989,2600.7,2600.3,0.0784992]
[1646895877101,1.92534,2600.8,2600.4,1.1463973]
[1646895877303,0.00350993,2600.6,2600.4,1.1463973]
[1646895878145,1.92534,2600.8,2600.4,1.1463973]
[1646895878348,1.92534,2600.8,2600.0,0.00882963]
[1646895878349,0.96272,2600.6,2600.0,0.00882963]
[1646895878553,0.96622993,2600.6,2600.0,0.09873395]
[1646895879352,0.00350993,2600.6,2600.4,1.22280994]
[1646895879552,1.96666457,2600.8,2600.0,0.09873395]
[1646895879753,0.00327895,2600.4,2600.0,0.09873395]
[1646895880354,0.00327895,2600.4,2599.9,1.1815]
[1646895880755,0.96276,2600.6,2600.3,1.0346022]
[1646895880956,0.96276,2600.6,2599.9,1.1815]
[1646895881558,0.96272,2600.6,2599.9,1.1815]
[1646895882001,0.0023453,2600.4,2600.2,0.92456388]
[1646895882398,0.0023453,2600.4,2599.9,1.1815]
[1646895882599,0.0023453,2600.4,2599.8,4.6708]
[1646895882801,0.04591356,2600.3,2599.3,7.08851859]
[1646895883198,2.7170121,2600.3,2599.3,7.08851859]
[1646895883400,1.46622706,2600.5,2599.5,1.19379975]
[1646895883401,1.17271684,2600.0,2599.5,1.19379975]
[1646895883801,2.67109854,2599.9,2599.5,1.19379975]
[1646895883999,2.57109854,2599.9,2599.5,1.19379975]
[1646895884205,0.96307,2600.0,2599.5,1.19379975]
[1646895884603,0.00319541,2599.8,2599.5,1.19379975]
[1646895885200,0.96305,2599.7,2599.5,1.19379975]
[1646895885444,0.96305,2599.7,2599.3,0.08551859]
[1646895885646,0.96305,2599.7,2598.8,0.06994605]
[1646895886044,0.96305,2599.7,2598.8,3.56994605]
[1646895886245,0.96305,2599.7,2598.9,0.06884795]
[1646895886650,1.83549666,2599.7,2599.2,1.03534081]
[1646895887248,1.88526308,2599.7,2599.2,1.03534081]
[1646895887648,1.83549666,2599.7,2599.2,1.03534081]
[1646895890293,0.96305,2599.7,2599.2,1.03534081]
[1646895891091,0.96305,2599.7,2599.3,0.0838905]
[1646895892945,0.87201742,2599.6,2599.0,0.08703378]
[1646895893144,0.96317,2599.4,2599.0,0.08703378]
[1646895893346,0.00331878,2599.8,2599.0,0.08703378]
[1646895893944,3.23786516,2600.2,2599.0,0.08703378]
[1646895894146,0.00331973,2599.8,2599.0,0.08703378]
[1646895894345,0.00331973,2599.8,2599.5,0.08451685]
[1646895895147,2.12168859,2599.9,2599.5,0.08451685]
[1646895895449,0.00331997,2599.8,2599.5,1.18851685]
[1646895895650,0.00331997,2599.8,2599.6,0.07069916]
[1646895896250,1.1311,2600.3,2599.6,0.07069916]
[1646895896450,0.00332001,2599.8,2599.6,0.07069916]
[1646895897603,2.09389,2600.3,2599.6,0.07069916]
[1646895897802,0.00299036,2599.8,2599.6,0.07069916]
[1646895898604,1.11326748,2600.2,2599.6,0.07069916]
[1646895899005,0.00299036,2599.8,2599.6,0.07069916]
[1646895899907,1.11326748,2600.2,2599.6,0.07069916]
[1646895900106,0.00299036,2599.8,2599.6,0.07069916]
[1646895900755,0.00299036,2599.8,2599.3,0.08118609]
[1646895901151,3.34145454,2600.2,2599.3,0.08118609]
[1646895901352,0.00299041,2599.8,2599.3,0.08118609]
[1646895901550,0.96599041,2599.8,2599.3,0.08118609]
[1646895901755,2.07843209,2599.8,2599.3,1.3132349]
[1646895901953,2.07843209,2599.8,2599.4,0.0814374]
[1646895902356,2.07544168,2599.8,2599.4,0.0814374]
[1646895902658,2.0784541,2599.8,2599.4,0.0814374]
[1646895903456,2.07544168,2599.8,2599.4,0.0814374]
[1646895903856,2.0784541,2599.8,2599.4,0.0814374]
[1646895904502,2.0784541,2599.8,2599.2,1.1328]
[1646895904700,2.0784541,2599.8,2598.9,0.08924244]
[1646895904701,5.20487356,2599.8,2598.9,0.08924244]
[1646895904900,0.96314,2599.6,2598.9,0.08924244]
[1646895905502,0.9801226,2599.4,2598.9,0.08924244]
[1646895906905,0.9801226,2599.4,2599.0,0.07353914]
[1646895907305,0.9801226,2599.4,2598.8,0.07278222]
[1646895907508,0.96322,2599.3,2598.8,0.07278222]
[1646895908156,0.96322,2599.3,2598.8,0.07160236]
[1646895908356,0.99554666,2599.0,2598.8,0.07160236]
[1646895908556,0.96322,2599.3,2598.8,0.07160236]
[1646895909657,1.88035657,2599.3,2598.8,0.07160236]
[1646895910658,3.80712657,2599.3,2598.8,0.07160236]
[1646895910858,1.92683,2599.2,2598.8,0.07160236]
[1646895911058,1.92683,2599.2,2598.6,0.08792159]
[1646895911359,0.05308431,2599.1,2598.7,0.00287806]
[1646895911559,0.0483607,2599.0,2598.7,0.00287806]
[1646895911801,1.01269046,2598.8,2598.7,0.00287806]
[1646895912003,1.04455524,2598.5,2598.0,1.05808403]
[1646895912201,1.01269046,2598.8,2598.7,0.00287805]
[1646895912202,3.23988046,2598.8,2598.7,0.00287805]
[1646895912501,3.19081,2598.8,2598.7,0.00287805]
[1646895913206,2.06958552,2598.5,2598.0,1.05808403]
[1646895913503,0.96357,2598.4,2598.0,1.05808403]
[1646895914502,0.96357,2598.4,2598.2,7.69987864]
[1646895914902,1.26357,2598.4,2598.2,7.69987864]
[1646895915551,1.26357,2598.4,2598.2,7.697]
[1646895915755,1.26357,2598.4,2598.2,7.69989303]
[1646895916754,46.0,2598.3,2597.5,0.06969132]
[1646895916958,0.96377,2598.1,2597.5,0.06969132]
[1646895917760,0.97746372,2597.9,2597.5,0.06969132]
[1646895917955,2.89127,2598.2,2597.5,0.06969132]
[1646895917956,1.92757,2597.8,2597.5,0.06969132]
[1646895918157,1.92757,2597.8,2597.7,0.00289359]
[1646895919205,0.96377,2597.8,2597.5,0.06969132]
[1646895919399,0.96377,2597.8,2597.6,0.00288324]
[1646895920302,0.96377,2597.8,2597.5,0.06969132]
[1646895920508,0.96377,2597.8,2597.2,3.73510572]
[1646895920701,0.96377,2597.8,2597.6,0.0028833]
[1646895921503,0.96377,2597.8,2597.3,1.16234409]
[1646895921504,1.92762,2597.8,2597.3,1.16234409]
[1646895921904,1.92762,2597.8,2597.6,0.0028833]
[1646895922108,0.96377,2597.8,2597.6,0.0028833]
[1646895922405,0.96366,2598.1,2597.6,0.0028833]
[1646895922804,0.96366,2598.1,2597.3,1.15849958]
[1646895923052,0.96366,2598.1,2597.6,0.00288561]
[1646895923253,2.142526,2598.1,2597.6,0.00288561]
[1646895923652,2.142526,2598.1,2597.7,1.17822454]
[1646895923852,0.96366,2598.1,2597.7,1.17822454]
[1646895924253,0.96366,2598.1,2597.7,1.26322653]
[1646895925056,2.02653733,2598.1,2597.7,1.26034108]
[1646895925455,2.02653733,2598.1,2597.8,0.00288539]
[1646895925856,0.96366,2598.1,2597.8,0.00288539]
[1646895926057,0.96366,2598.1,2597.8,0.07725708]
[1646895926257,0.96366,2598.1,2597.8,0.07437169]
[1646895926457,0.96366,2598.1,2597.4,0.07140461]
[1646895926710,0.96366,2598.1,2597.8,0.00287761]
[1646895927502,0.96366,2598.1,2597.4,0.07140461]
[1646895927703,0.90018851,2597.9,2597.8,0.00287761]
[1646895928705,0.90018851,2597.9,2597.4,0.9857097]
[1646895928904,0.90018851,2597.9,2597.7,0.00287772]
[1646895929303,0.96366,2598.1,2597.7,0.00287772]
[1646895929905,0.96366,2598.1,2597.5,0.08253928]
[1646895930105,0.96366,2598.1,2597.8,0.0028794]
[1646895930305,1.94440032,2598.1,2597.8,0.0028794]
[1646895931152,1.94440032,2598.1,2597.5,0.08253928]
[1646895931553,1.94440032,2598.1,2597.8,0.00287935]
[1646895932152,3.87205032,2598.1,2597.8,0.00287935]
[1646895932352,3.87205032,2598.1,2597.5,0.08253928]
[1646895932353,0.90028515,2597.7,2597.5,0.08253928]
[1646895932553,0.96382,2597.6,2597.3,0.08249149]
[1646895934302,0.96382,2597.6,2597.0,0.08813546]
[1646895934501,1.92773,2597.6,2597.0,0.08813546]
[1646895934906,1.92773,2597.6,2597.2,0.00287968]
[1646895935709,2.11400399,2597.3,2597.2,0.00287968]
[1646895935908,0.96396,2597.3,2597.0,0.08813546]
[1646895936709,0.96396,2597.3,2596.8,0.0869034]
[1646895937112,0.96396,2597.3,2596.4,1.1287]
[1646895937113,46.05825487,2597.2,2596.4,1.1287]
[1646895937311,0.96416,2597.0,2596.9,0.003109]
[1646895937710,2.30481938,2597.0,2596.9,0.003109]
[1646895938360,0.96427,2596.8,2596.3,4.64475619]
[1646895938558,1.92854,2596.8,2596.3,4.64475619]
[1646895938758,1.92854,2596.8,2596.3,1.01075619]
[1646895939964,1.92854,2596.8,2595.6,6.4608]
[1646895939966,0.96435,2596.5,2595.6,2.9608]
[1646895940167,3.5,2596.4,2595.6,2.9608]
[1646895940365,0.96455,2596.2,2595.6,2.9608]
[1646895940765,1.26455,2596.2,2595.6,2.9608]
[1646895940965,3.5,2596.1,2595.8,0.93575188]
[1646895941169,3.5,2596.1,2595.8,0.00351375]
[1646895941170,1.92903,2596.0,2595.8,0.00351375]
[1646895941468,1.92903,2596.0,2595.1,1.2448]
[1646895941469,50.46452,2595.9,2595.1,1.2448]
[1646895941927,50.46452,2595.9,2595.0,3.2316]
[1646895942128,1.09073719,2595.4,2595.0,4.39936407]
[1646895942328,0.96479,2595.3,2594.6,1.159]
[1646895942527,0.96479,2595.3,2594.4,0.06861899]
[1646895942528,4.46479,2595.3,2594.4,0.06861899]
[1646895942729,0.96476,2595.1,2594.4,0.06861899]
[1646895943128,0.96476,2595.1,2594.2,0.06968913]
[1646895943330,0.96476,2595.1,2594.8,1.01540535]
[1646895943529,2.4842,2595.7,2594.8,1.01540535]
[1646895943730,0.96465,2595.5,2594.8,1.01540535]
[1646895944332,0.96465,2595.5,2594.8,1.08233302]
[1646895944829,0.96465,2595.5,2595.2,1.04153881]
[1646895945030,4.7408,2595.8,2595.2,1.04153881]
[1646895945031,0.96452,2595.8,2595.2,1.04153881]
[1646895945231,0.96452,2595.8,2595.3,0.07221544]
[1646895945451,0.96452,2595.8,2595.4,1.5]
[1646895945852,0.96452,2595.8,2595.4,1.50339873]
[1646895946859,0.96452,2595.8,2595.4,1.5]
[1646895947056,0.96452,2595.8,2595.5,0.00322102]
[1646895947456,46.0,2595.9,2595.7,1.5]
[1646895948258,46.0,2595.9,2595.7,1.50322093]
[1646895948560,0.96434,2596.2,2595.7,1.50322093]
[1646895949218,0.96434,2596.2,2596.0,1.0071871]
[1646895950602,0.96434,2596.2,2595.9,1.5]
[1646895952009,0.96434,2596.2,2596.1,1.14365278]
[1646895952406,0.96434,2596.2,2595.9,1.5]
[1646895953452,0.96434,2596.2,2596.0,2.36980178]
[1646895955654,0.96434,2596.2,2596.0,1.5]
[1646895956453,0.96434,2596.2,2595.5,1.28628]
[1646895956454,0.96342,2596.2,2595.5,1.28628]
[1646895956709,0.96342,2596.2,2595.7,0.00336804]
[1646895957306,0.96342,2596.2,2595.9,1.15905696]
[1646895957307,0.05691154,2596.1,2595.9,1.15905696]
[1646895958505,0.96447,2595.9,2595.3,6.13831544]
[1646895958704,0.96447,2595.9,2595.3,1.57221544]
[1646895959204,0.96447,2595.9,2595.7,0.0030833]
[1646895959605,0.96447,2595.9,2595.8,0.9115055]
[1646895960553,0.96447,2595.9,2595.8,1.5]
[1646895961159,1.02128154,2596.1,2595.8,1.5]
[1646895961359,0.96437,2596.1,2595.8,1.5]
[1646895961757,0.96437,2596.1,2595.9,0.87278136]
[1646895962158,1.92889,2596.3,2595.9,0.87278136]
[1646895962360,1.92889,2596.3,2595.8,1.5]
[1646895962557,0.04786112,2596.3,2595.8,1.5]
[1646895963557,0.96429,2596.4,2596.2,2.49341065]
[1646895963757,1.1473,2596.6,2596.2,2.49341065]
[1646895963758,0.05884435,2596.6,2596.2,2.49341065]
[1646895964215,0.05884435,2596.6,2596.2,1.5]
[1646895964407,1.98743435,2596.6,2596.2,1.5]
[1646895965812,0.0564774,2596.5,2596.2,1.5]
[1646895966212,3.43208939,2596.4,2596.2,1.5]
[1646895966414,1.01129949,2596.3,2595.7,0.00305437]
[1646895966713,0.04730654,2596.2,2595.7,0.00305437]
[1646895966917,0.04744913,2596.0,2595.7,0.00305437]
[1646895967316,0.04744913,2596.0,2595.5,1.5]
[1646895967523,0.04744913,2596.0,2595.7,0.00305437]
[1646895967718,0.04744913,2596.0,2595.7,1.07665384]
[1646895967953,0.96456,2595.9,2595.7,1.07665384]
[1646895968354,0.96456,2595.9,2595.7,1.07359947]
[1646895968555,0.96456,2595.9,2595.7,2.57359947]
[1646895968755,0.96456,2595.9,2595.7,2.57665384]
[1646895969155,0.04744913,2596.0,2595.7,2.57665384]
[1646895969556,0.04744913,2596.0,2595.7,2.57359947]
[1646895969755,0.5316687,2596.4,2595.7,2.57359947]
[1646895969956,1.98768183,2596.5,2595.7,2.57641259]
[1646895970557,1.98768183,2596.5,2595.8,1.5]
[1646895971156,1.98768183,2596.5,2596.1,0.93650751]
[1646895971356,0.96425,2596.4,2596.1,0.93650751]
[1646895972019,0.96425,2596.4,2595.9,1.5]
[1646895972513,0.05135973,2596.3,2595.9,1.5]
[1646895973114,0.05135973,2596.3,2595.9,2.36903485]
[1646895976560,0.05135973,2596.3,2596.0,1.5]
[1646895976766,0.05447839,2596.2,2596.0,1.5]
[1646895977165,0.96452,2596.1,2596.0,1.5]
[1646895977365,0.96452,2596.1,2595.7,0.00285519]
[1646895977565,1.01931716,2596.0,2595.7,0.00285519]
[1646895977770,1.07678985,2595.9,2595.7,0.00285519]
[1646895977965,0.05228908,2595.8,2595.7,0.00285519]
[1646895978174,0.05228908,2595.8,2595.4,1.12015704]
[1646895978175,1.01698908,2595.8,2595.4,1.12015704]
[1646895978365,0.04760838,2595.7,2595.4,1.12015704]
[1646895979519,0.04760838,2595.7,2595.4,1.1230125]
[1646895980321,0.04760838,2595.7,2595.4,0.00285546]
[1646895980519,0.04760838,2595.7,2595.1,1.5]
[1646895980520,0.96462,2595.6,2595.1,1.5]
[1646895980721,0.96462,2595.6,2595.4,0.00286535]
[1646895981521,0.96462,2595.6,2595.1,2.70452849]
[1646895981922,0.96462,2595.6,2595.4,0.0028654]
[1646895982727,0.96462,2595.6,2595.1,2.70452849]
[1646895983161,0.96462,2595.6,2595.4,0.0028654]
[1646895983660,1.14286906,2595.5,2595.4,0.0028654]
[1646895984062,3.07221906,2595.5,2595.1,1.5]
[1646895984262,3.07221906,2595.5,2595.3,0.0028561]
[1646895985268,3.07221906,2595.5,2595.1,1.5]
[1646895986267,0.96462,2595.6,2595.1,1.5]
[1646895987919,1.02195563,2595.5,2595.2,0.00320052]
[1646895988122,0.96462,2595.6,2595.2,0.00320052]
[1646895988922,0.00121849,2595.2,2595.1,1.5]
[1646895994068,0.00121849,2595.2,2595.1,1.49918141]
[1646896000462,0.9648,2595.1,2595.0,0.01387636]
[1646896000965,1.9669006,2595.1,2595.0,0.013014]
[1646896001721,4.86719672,2595.1,2595.0,0.013014]
[1646896003712,1.9669006,2595.1,2595.0,0.013014]
[1646896003914,0.9648,2595.1,2595.0,0.013014]
[1646896004114,0.00121849,2595.2,2595.0,0.013014]
[1646896004513,0.00121849,2595.2,2595.0,2.585114]
[1646896005113,1.0008862,2595.2,2595.0,2.585114]
[1646896005564,1.0008862,2595.2,2595.0,1.085114]
[1646896005764,1.0008862,2595.2,2595.0,0.013014]
[1646896005966,1.0008862,2595.2,2595.0,0.01586623]
[1646896006366,1.9655762,2595.2,2595.0,0.01586623]
[1646896006767,1.9655762,2595.2,2595.0,0.013014]
[1646896007169,1.9655762,2595.2,2595.0,0.01587127]
[1646896008068,1.9655762,2595.2,2595.0,0.013014]
[1646896008269,1.9655762,2595.2,2595.0,0.01587127]
[1646896009217,1.9655762,2595.2,2595.0,0.013014]
[1646896009508,1.9655762,2595.2,2595.0,0.01587127]
[1646896010608,1.9655762,2595.2,2595.0,0.01587013]
[1646896011610,1.9655762,2595.2,2595.0,0.013014]
[1646896011815,1.9655762,2595.2,2595.0,0.01587013]
[1646896012814,1.9655762,2595.2,2595.0,0.013014]
[1646896013057,1.9655762,2595.2,2595.0,0.01587013]
[1646896013960,1.9655762,2595.2,2595.0,0.013014]
[1646896014358,1.9655762,2595.2,2595.0,0.01587039]
[1646896015162,1.9655762,2595.2,2595.0,0.013014]
[1646896015563,1.9655762,2595.2,2595.0,1.51587039]
[1646896016166,1.9655762,2595.2,2595.0,1.51479143]
[1646896016368,3.5,2595.1,2595.0,1.51193504]
[1646896016814,1.9655762,2595.2,2595.0,1.51193504]
[1646896017815,1.9655762,2595.2,2595.0,1.51479137]
[1646896018819,1.9655762,2595.2,2595.0,1.51193504]
[1646896019016,1.9655762,2595.2,2595.0,1.51479137]
[1646896020119,1.9655762,2595.2,2595.0,1.51193504]
[1646896020320,1.9655762,2595.2,2595.0,1.51479137]
[1646896021161,1.9655762,2595.2,2595.0,1.51193504]
[1646896021562,1.9655762,2595.2,2595.0,1.51478424]
[1646896022363,1.9655762,2595.2,2595.0,1.51193504]
[1646896022766,1.9655762,2595.2,2595.0,1.51478424]
[1646896023668,1.9655762,2595.2,2595.0,1.51193504]
[1646896023869,1.9655762,2595.2,2595.0,1.51478424]
[1646896024311,0.05784413,2595.1,2595.0,1.51478424]
[1646896024913,0.05784413,2595.1,2595.0,1.51193504]
[1646896032114,3.55784413,2595.1,2595.0,1.51193504]
[1646896032311,0.05784413,2595.1,2595.0,1.51193504]
[1646896035458,0.05784413,2595.1,2595.0,0.01193504]
[1646896036267,0.5,2595.3,2595.1,46.0]
[1646896036466,0.5,2595.3,2595.2,3.5]
[1646896036664,0.5,2595.3,2595.2,3.8]
[1646896036864,0.5,2595.3,2595.2,0.3]
[1646896037066,0.5,2595.3,2595.1,46.3]
[1646896037268,0.5,2595.3,2595.2,1.21300158]
[1646896037465,0.5,2595.3,2595.2,2.71300158]
[1646896037665,0.88199169,2595.7,2595.2,2.71300158]
[1646896038269,0.5,2595.6,2595.3,0.00285013]
[1646896038468,0.5,2595.6,2595.5,1.5]
[1646896040514,1.51885566,2595.6,2595.5,1.5]
[1646896042525,2.48343566,2595.6,2595.4,0.00285002]
[1646896042960,2.48343566,2595.6,2595.1,1.8]
[1646896043159,2.48343566,2595.6,2595.4,0.00285008]
[1646896044163,1.98343566,2595.6,2595.0,0.01193504]
[1646896044367,1.98343566,2595.6,2595.4,0.00285008]
[1646896045367,1.98343566,2595.6,2595.0,0.01193504]
[1646896045567,1.98343566,2595.6,2595.4,0.00285008]
[1646896046570,1.98343566,2595.6,2595.0,0.01193504]
[1646896046845,1.98343566,2595.6,2595.4,0.00285008]
[1646896047042,1.98226436,2595.6,2595.4,0.00285008]
[1646896047643,1.98226436,2595.6,2595.0,0.08176516]
[1646896047846,0.87569791,2595.2,2595.0,0.08176516]
[1646896048243,0.87569791,2595.2,2595.0,0.01193504]
[1646896049044,0.87569791,2595.2,2595.0,0.01478555]
[1646896049445,3.5159107,2595.2,2595.0,0.01478555]
[1646896050043,3.5159107,2595.2,2595.0,0.01193504]
[1646896050244,3.5159107,2595.2,2595.0,0.01479268]
[1646896050460,5.4455607,2595.2,2595.0,0.01479268]
[1646896052465,5.4455607,2595.2,2595.0,0.01193504]
[1646896052664,5.4455607,2595.2,2595.0,0.01479268]
[1646896053666,5.4455607,2595.2,2595.0,0.01193504]
[1646896054065,5.4455607,2595.2,2595.0,0.01478395]
[1646896054931,5.4455607,2595.2,2595.0,0.01193504]
[1646896055231,5.4455607,2595.2,2595.0,0.01478395]
[1646896056031,5.4455607,2595.2,2595.0,0.01193504]
[1646896056532,5.4455607,2595.2,2595.0,0.01478395]
[1646896056533,0.04744489,2595.1,2595.0,0.01478395]
[1646896057336,0.04744489,2595.1,2595.0,0.01193504]
[1646896057737,1.01225489,2595.1,2595.0,0.01193504]
[1646896061367,1.01225489,2595.1,2594.9,0.00285049]
[1646896062014,1.01225489,2595.1,2594.6,1.5]
[1646896062414,1.01225489,2595.1,2594.9,0.00285054]
[1646896062415,0.96481,2595.1,2594.9,0.00285054]
[1646896063217,0.96481,2595.1,2594.7,1.5]
[1646896063616,0.96481,2595.1,2594.9,0.00285054]
[1646896064417,0.96481,2595.1,2594.8,1.5]
[1646896064818,0.96481,2595.1,2594.9,0.00285064]
[1646896065761,0.96481,2595.1,2594.8,1.5]
[1646896065966,0.96481,2595.1,2594.9,0.00285064]
[1646896066967,4.46481,2595.1,2594.8,1.5]
[1646896067367,4.46481,2595.1,2594.9,0.00285064]
[1646896067568,3.5,2595.0,2594.9,0.00177909]
[1646896068069,0.96481,2595.1,2594.6,1.5]
[1646896068269,1.1711558,2594.7,2594.6,1.5]
[1646896068571,2.1360258,2594.7,2594.6,1.5]
[1646896068772,2.1360258,2594.7,2594.6,1.45]
[1646896069433,2.1360258,2594.7,2594.6,1.5]
[1646896070434,5.6360258,2594.7,2594.5,1.56964218]
[1646896070637,3.5,2594.6,2594.5,1.5]
[1646896071536,3.5,2594.6,2594.4,0.00383189]
[1646896072046,3.5,2594.6,2594.4,0.00732183]
[1646896072841,3.5,2594.6,2594.4,0.00383189]
[1646896073069,3.5,2594.6,2594.4,0.0073219]
[1646896073670,6.37633832,2594.6,2594.4,0.0073219]
[1646896073869,3.5,2594.5,2594.4,0.0073219]
[1646896074071,3.5,2594.5,2594.4,0.00383189]
[1646896074269,3.5,2594.5,2594.4,0.0073219]
[1646896074873,3.5,2594.5,2594.2,1.5]
[1646896074874,46.0,2594.4,2594.2,1.5]
[1646896075073,4.055,2594.3,2594.2,1.5]
[1646896075373,6.93133832,2594.3,2593.8,3.1766]
[1646896075571,0.92895877,2594.0,2593.8,3.1766]
[1646896075972,0.92895877,2594.0,2593.7,0.08776756]
[1646896076819,0.92895877,2594.0,2593.7,0.09085699]
[1646896077420,4.4653,2593.9,2593.7,0.09085699]
[1646896077620,3.5,2593.8,2593.7,0.08776756]
[1646896077920,3.5,2593.8,2593.6,1.5]
[1646896078121,3.5,2593.8,2593.7,0.00308943]
[1646896078922,3.5,2593.8,2593.6,1.5]
[1646896079123,3.5,2593.8,2593.6,1.50308955]
[1646896080026,3.5,2593.8,2593.6,1.5]
[1646896080663,0.9653,2593.9,2593.6,1.5]
[1646896081664,0.9653,2593.9,2593.5,1.5]
[1646896082470,1.5203,2593.9,2593.6,1.5]
[1646896082672,4.39663832,2593.9,2593.6,1.5]
[1646896082872,3.42466627,2593.8,2593.6,1.5]
[1646896083069,6.87615627,2593.8,2593.6,1.5]
[1646896083271,3.42617266,2593.7,2593.6,1.5]
[1646896083470,6.32782832,2593.8,2593.3,1.5]
[1646896083873,0.99724576,2593.4,2593.3,1.5]
[1646896084071,1.96272576,2593.4,2593.3,1.5]
[1646896087224,0.96548,2593.4,2593.3,1.5]
[1646896087823,1.93058,2593.9,2593.4,0.07607929]
[1646896088064,1.93058,2593.9,2593.3,1.5]
[1646896088266,1.93058,2593.9,2593.6,0.97018135]
[1646896088862,1.93058,2593.9,2593.5,0.00324941]
[1646896089462,0.96519,2593.8,2593.5,0.00324941]
[1646896089664,0.96519,2593.8,2593.4,0.8711505]
[1646896089962,0.96519,2593.8,2593.6,0.00324928]
[1646896090363,0.96519,2593.8,2593.6,1.50324928]
[1646896090962,0.96519,2593.8,2593.6,1.5]
[1646896091164,1.1566169,2594.1,2593.6,1.5]
[1646896091165,0.96512,2594.1,2593.7,3.5]
[1646896091366,0.55242464,2594.4,2593.7,3.5]
[1646896091367,0.5,2594.4,2593.8,0.06804718]
[1646896092218,1.10186794,2594.6,2594.1,1.06973014]
[1646896092416,1.10186794,2594.6,2594.3,1.5]
[1646896093516,1.10186794,2594.6,2594.3,0.0027422]
[1646896094618,1.10186794,2594.6,2594.2,1.5]
[1646896094816,1.10186794,2594.6,2594.3,0.0027422]
[1646896095661,1.10186794,2594.6,2594.2,1.5]
[1646896096062,1.10186794,2594.6,2594.3,0.00284797]
[1646896096260,1.01763291,2594.7,2594.3,0.00284797]
[1646896096869,1.01763291,2594.7,2594.2,1.5]
[1646896097265,1.01763291,2594.7,2594.3,0.00284797]
[1646896097466,1.01763291,2594.7,2594.3,1.03922025]
[1646896098065,1.01763291,2594.7,2594.3,1.03637228]
[1646896098266,1.01763291,2594.7,2594.3,1.03922025]
[1646896099214,1.01763291,2594.7,2594.3,1.03637228]
[1646896099419,1.01763291,2594.7,2594.3,1.5]
[1646896099618,0.05662929,2594.6,2594.3,1.50282417]
[1646896100516,0.05662929,2594.6,2594.2,1.5]
[1646896100517,2.89481,2594.5,2594.2,1.5]
[1646896100719,2.89481,2594.5,2594.3,0.00282417]
[1646896101717,2.89481,2594.5,2594.2,1.5]
[1646896101923,2.89481,2594.5,2594.3,0.00282417]
[1646896102321,1.14650914,2594.4,2594.3,0.00282417]
[1646896102521,2.11151914,2594.4,2594.3,0.00282417]
[1646896102723,2.11151914,2594.4,2594.2,1.5]
[1646896102724,39.5,2594.3,2594.2,1.5]
[1646896103168,39.5,2594.3,2593.8,1.28989898]
[1646896103169,6.5,2594.2,2593.8,1.28989898]
[1646896103369,12.89539,2594.2,2593.8,0.07739898]
[1646896103569,12.89539,2594.2,2593.5,0.08075026]
[1646896103969,12.89539,2594.2,2593.7,3.0501]
[1646896104171,12.89539,2594.2,2593.5,0.08075026]
[1646896104172,0.96534,2594.0,2593.5,0.08075026]
[1646896104474,39.55134921,2594.1,2593.3,1.1732]
[1646896104475,5.49422404,2593.9,2593.3,1.1732]
[1646896105168,0.9239038,2593.4,2593.3,1.1732]
[1646896105368,0.9239038,2593.4,2593.1,3.0055702]
[1646896105369,1.8892438,2593.4,2593.1,0.0687702]
[1646896105771,1.8892438,2593.4,2592.9,0.07792805]
[1646896106816,1.8892438,2593.4,2593.0,0.00345958]
[1646896107021,1.94193708,2593.4,2593.0,0.00345958]
[1646896107716,1.94193708,2593.4,2592.9,0.3]
[1646896107916,1.94193708,2593.4,2593.1,0.00345951]
[1646896108918,1.94193708,2593.4,2592.7,0.06932179]
[1646896109119,1.94193708,2593.4,2593.1,0.00345944]
[1646896109318,5.44193708,2593.4,2593.1,0.00345944]
[1646896109721,5.44193708,2593.4,2592.7,0.07990898]
[1646896109722,46.5,2593.3,2592.7,0.07990898]
[1646896109920,46.5,2593.3,2592.7,0.07894898]